Cogmind - Beta 14 @@@ ROGUE MODE // 2024.12.11 @ 17:41:06 Player: Fangrelle Result: Destroyed by TP-ZCV(R) with Subdweller Beam Cannon Performance ------------- Evolutions (0) 0 Regions Visited (3) 600 Robots Destroyed (39) 195 Value Destroyed (981) 981 Prototype IDs (11) 220 Alien Tech Used (0) 0 Bonus (-46) -46 TOTAL SCORE: 1950 Bonus ------- Friendly Fire -46 Cogmind --------- Core Integrity 0/250 Matter 290/300 Energy 96/100 System Corruption 0% Temperature Cool (11) Movement Treading (250) Ox1 Location -10/Subcaves Parts ------- > --- POWER (1) -------- Subdweller Power Source > --- PROPULSION (2) --- Light Treads Spiked Treads > --- UTILITY (2) ------ High-capacity Storage Unit Light Armor Plating > --- WEAPON (2) ------- EM Pulse Gun Barrage Gun > --- INVENTORY (20) --- High-capacity Matter Pod (200) Power Bank Subdweller Beam Cannon Datajack Plasma Cutter SUBCON Basin (Full) Peak State ------------ > --- POWER ------------ Subdweller Power Source > --- PROPULSION ------- Light Treads Spiked Treads > --- UTILITY ---------- High-capacity Storage Unit Light Armor Plating > --- WEAPON ----------- Heavy Assault Rifle Barrage Gun > --- INVENTORY -------- Wheel High-capacity Matter Pod Power Bank Subdweller Beam Cannon Datajack SUBCON Basin [Rating: 31] Favorites ----------- Power Subdweller Power Source Engine Subdweller Power Source Power Core Light Nuclear Core Propulsion Light Treads Treads Light Treads Leg Aluminum Leg Utility High-capacity Storage Unit Device Shield Generator Storage High-capacity Storage Unit Protection Light Armor Plating Weapon Shotgun Energy Gun EM Pulse Gun Energy Cannon Subdweller Beam Cannon Ballistic Gun Shotgun Special Weapon Mining Laser Special Melee Weapon Datajack Build | -11 -10 -10 -10 ------- Run | Yrd Mat Min Sub Slots Evolved . | . . . . Power . | . . . . Propulsion . | . . . . Utility . | . . . . Weapon . | . . . . Parts Attached 40 | . 11 3 26 Power 4 | . 1 . 3 Engine 3 | . . . 3 Core 1 | . 1 . . Reactor . | . . . . Propulsion 6 | . 3 . 3 Treads 6 | . 3 . 3 Leg . | . . . . Wheel . | . . . . Hover . | . . . . Flight . | . . . . Utility 11 | . 3 1 7 Device 4 | . 2 . 2 Storage 2 | . 1 . 1 Processor . | . . . . Hackware . | . . . . Protection 5 | . . 1 4 Artifact . | . . . . Weapon 19 | . 4 2 13 Energy Gun 1 | . . . 1 Energy Cannon 4 | . . . 4 Ballistic Gun 12 | . 4 1 7 Ballistic Cannon . | . . . . Launcher . | . . . . Special Weapon 1 | . . 1 . Impact Weapon . | . . . . Slashing Weapon . | . . . . Piercing Weapon . | . . . . Special Melee Weapon 1 | . . . 1 Unidentified Prototypes . | . . . . Parts Lost 4 | . 1 . 3 Power 1 | . . . 1 Propulsion . | . . . . Utility 2 | . 1 . 1 Weapon 1 | . . . 1 Highest Loss Streak 2 | . 1 . 2 To Critical Strikes . | . . . . Average Slot Usage (%) 94 | . 99 100 91 Engine 7 | . . . 12 Core 6 | . 13 14 1 Treads 27 | . 27 28 28 Device 5 | . 13 4 3 Storage 7 | . 14 14 3 Protection 9 | . . 9 13 Ballistic Gun 26 | . 27 27 26 Peak Build Rating 31 | 6 15 14 31 Average Rating 14 | 6 14 13 15 On Entrance 9 | 6 6 14 13 Naked Turns . | . . . . Heaviest Build 54 | 13 53 54 54 Greatest Support 40 | 20 40 40 40 Greatest Overweight (x) 1 | . 1 1 1 Average Overweight (x) . | . . 1 . Largest Inventory Capacity 20 | 8 20 20 20 Average Capacity 12 | 8 18 20 8 Most Carried 20 | 6 20 20 20 Average Carried 11 | 6 17 19 7 Final Capacity 20 | 8 20 20 20 Final Carried 20 | 6 20 19 20 Class Distribution -------------------- 98% | Mutant Dominant Class ---------------- Mutant | -10/Materials Mutant | -10/Mines Mutant | -10/Subcaves Resources | -11 -10 -10 -10 ----------- Run | Yrd Mat Min Sub Matter Collected 2071 | 200 877 38 956 Remotely . | . . . . Salvage Created 1171 | . 537 13 621 Parts 86 | . 41 5 40 Haulers Intercepted 1 | . 1 . . Recyclers Shooed . | . . . . Parts Field Recycled . | . . . . Retrieved Matter . | . . . . Parts Self-Destructed 5 | . . . 5 Prevented . | . . . . Kills | -11 -10 -10 -10 ------- Run | Yrd Mat Min Sub Combat Hostiles Destroyed 26 | . 10 . 16 Guns 26 | . 10 . 16 Classes Destroyed 10 | . 6 1 3 Worker 6 | . 6 . . Tunneler 1 | . . 1 . Hauler 1 | . 1 . . Operator 2 | . 2 . . Watcher 3 | . 3 . . Swarmer 5 | . 2 . 3 Grunt 8 | . 8 . . Sentry 1 | . . . 1 Artisan 2 | . . . 2 Subdweller 12 | . . . 12 Best Kill Streak 3 | . 3 1 3 Combat Bots Only 3 | . 2 . 3 Max Kills in Single Turn 2 | . 2 1 2 Gunslinging 1 | . . . 1 Exploded . | . . . . Melee . | . . . . Uniques/NPCs Destroyed . | . . . . Combat | -11 -10 -10 -10 -------- Run | Yrd Mat Min Sub Hostile Shots Fired 142 | . 66 . 76 Missed 38 | . 16 . 22 Damage Taken 1642 | . 440 . 1202 Core 252 | . 57 . 195 Absorbed by Shields 323 | . 158 . 165 Core Remaining (%) 100 | 100 . . . Volleys Fired 141 | . 50 4 87 Largest 2 | . 2 2 2 Hottest 103 | . 46 100 103 Shots Fired 270 | . 100 6 164 Gun 256 | . 100 4 152 Cannon 12 | . . . 12 Launcher . | . . . . Special 2 | . . 2 . Kinetic 256 | . 100 4 152 Thermal 14 | . . 2 12 Explosive . | . . . . Electromagnetic . | . . . . Robot Hit Streak 38 | . 6 3 38 Robot Miss Streak 6 | . 6 1 3 Penetration Max . | . . . . Secondary Targets 4 | . 1 . 3 Max Gunslinging Chain 1 | . 1 . 1 Shots Hit Robots 161 | . 67 1 93 Core Hits 74 | . 39 1 34 Critical Kills 2 | . . . 2 Critical Parts Destroyed 1 | . 1 . . Critical Strikes 3 | . 1 . 2 Destroy 3 | . 1 . 2 Melee Attacks 5 | . . . 5 Impact . | . . . . Slashing . | . . . . Piercing . | . . . . Sneak Attacks 5 | . . . 5 Combat Hostiles . | . . . . Follow-up Attacks . | . . . . Damage Inflicted 2061 | . 937 10 1114 Guns 2061 | . 937 10 1114 Cannons . | . . . . Explosions . | . . . . Melee . | . . . . Ramming . | . . . . Kinetic 2061 | . 937 10 1114 Thermal . | . . . . Explosive . | . . . . Electromagnetic . | . . . . Impact . | . . . . Slashing . | . . . . Piercing . | . . . . Highest Corruption . | . . . . Average Corruption . | . . . . Corruption Purged . | . . . . Corruption Blocked . | . . . . Overload Shots . | . . . . Overflow Damage . | . . . . Projectiles . | . . . . Explosions . | . . . . Melee . | . . . . Knockbacks . | . . . . Impact . | . . . . Kinetic . | . . . . Secondary . | . . . . Self-Inflicted Damage . | . . . . Shots . | . . . . Rammed . | . . . . Targets Rammed . | . . . . Kicked . | . . . . Crushed . | . . . . Highest Temperature 229 | . 29 80 229 Average Temperature 31 | . 9 42 115 Received Heat Transfer 714 | . 234 . 480 Siege Activations . | . . . . Robots Corrupted . | . . . . Combat Hostiles . | . . . . Parts Fried . | . . . . Impact Corruptions . | . . . . Robots Melted . | . . . . Combat Hostiles . | . . . . Parts Melted . | . . . . Heat Transferred . | . . . . Parts Sabotaged . | . . . . Parts Stolen . | . . . . Parts Stripped . | . . . . Power Chain Reactions . | . . . . Alert | -11 -10 -10 -10 ------- Run | Yrd Mat Min Sub Peak Influence 149 | . 149 16 . Initial 16 | . . 16 . Average 17 | . 32 3 . Maximum Alert Level . | . . . . Low Security (%) 100 | 100 100 100 . Level 1 . | . . . . Level 2 . | . . . . Level 3 . | . . . . Level 4 . | . . . . Level 5 . | . . . . High Security . | . . . . Max Security . | . . . . Squads Dispatched 5 | . 5 . . Investigation 3 | . 3 . . Extermination . | . . . . Reinforcement 2 | . 2 . . Assault . | . . . . Garrison . | . . . . Intercept . | . . . . Searches Triggered . | . . . . Construction Impeded . | . . . . Haulers Reinforced . | . . . . Active Scanning Responses . | . . . . Cargo Convoy Interrupts . | . . . . Stealth | -11 -10 -10 -10 --------- Run | Yrd Mat Min Sub Distress Signals . | . . . . Communications Jammed . | . . . . Distress Signals . | . . . . Times Spotted 46 | . 21 . 25 Peak Tracking Total 3 | . 3 . 3 Tactical Retreats 10 | . 1 . 9 Traps | -11 -10 -10 -10 ------- Run | Yrd Mat Min Sub Traps Triggered 5 | . 1 . 4 Indirectly . | . . . . Trap Hack Attempts . | . . . . Triggered . | . . . . Disarmed . | . . . . Reprogrammed . | . . . . Reused 1 | . . . 1 Traps Extracted . | . . . . Installed 2 | . . . 2 Triggered . | . . . . Most Traps Carried 1 | . . . 1 Machines | -11 -10 -10 -10 ---------- Run | Yrd Mat Min Sub Machines Disabled 2 | . . . 2 Max in Single Turn 1 | . . . 1 Machines Repaired . | . . . . Machines Dismantled . | . . . . Machines Sabotaged . | . . . . Overloaded Fab Kills . | . . . . Hacking | -11 -10 -10 -10 --------- Run | Yrd Mat Min Sub Machines Accessed 13 | . 8 1 4 Terminals 7 | . 6 1 . Fabricators . | . . . . Repair Stations . | . . . . Recycling Units 2 | . 2 . . Scanalyzers . | . . . . Garrison Access . | . . . . Total Hacks 45 | . 25 4 16 Successful 28 | . 10 2 16 Failed 17 | . 15 2 . Catastrophic . | . . . . Database Lockouts . | . . . . Manual 29 | . 25 4 . Terminals 25 | . 21 4 . Fabricators . | . . . . Repair Stations . | . . . . Recycling Units 4 | . 4 . . Scanalyzers . | . . . . Garrison Access . | . . . . Terminal Hacks 18 | . . 2 16 Record 13 | . . . 13 Robot Analysis 1 | . . 1 . Open Door 1 | . . . 1 Zone Layout 1 | . . 1 . Derelict Proto ID Bank 1 | . . . 1 Release Object 1 | . . . 1 Fabricator Hacks . | . . . . Repair Station Hacks . | . . . . Recycling Unit Hacks . | . . . . Scanalyzer . | . . . . Garrison Access Hacks . | . . . . Unauthorized Hacks 10 | . 10 . . Terminals 9 | . 9 . . Assimilate 3 | . 3 . . Botnet 4 | . 4 . . Operators 1 | . 1 . . Skim 1 | . 1 . . Fabricators . | . . . . Repair Stations . | . . . . Recycling Units 1 | . 1 . . Tunnel 1 | . 1 . . Scanalyzers . | . . . . Garrison Access . | . . . . Data Cores Recovered . | . . . . Used . | . . . . Hacking Detections 8 | . 7 1 . Full Trace Events 2 | . 2 . . Feedback Events . | . . . . Feedback Blocked . | . . . . Robot Schematics Acquired . | . . . . Robots Built . | . . . . Authchips . | . . . . Time . | . . . . Total Robot Build Rating . | . . . . Part Schematics Acquired . | . . . . Parts Built . | . . . . Authchips . | . . . . Time . | . . . . Total Part Build Rating . | . . . . Parts Repaired . | . . . . Time . | . . . . Parts Recycled . | . . . . Recycled Matter . | . . . . Retrieved Matter . | . . . . Retrieved Components . | . . . . Parts Scanalyzed . | . . . . Part Schematics Acquired . | . . . . Parts Damaged . | . . . . Bothacking | -11 -10 -10 -10 ------------ Run | Yrd Mat Min Sub Used RIF Installer . | . . . . Robots Hacked . | . . . . Non-combat . | . . . . Combat . | . . . . Robot Hacks Applied . | . . . . Relay Couplers Released . | . . . . Fabnet Peak Effective % . | . . . . Robots Rewired . | . . . . Allies Hacked . | . . . . Hacks Repelled . | . . . . Allies | -11 -10 -10 -10 -------- Run | Yrd Mat Min Sub Total Allies . | . . . . Largest Group . | . . . . Highest-Rated Group . | . . . . Highest-Rated Ally . | . . . . Total Orders . | . . . . Ally Attacks . | . . . . Total Damage . | . . . . Kills . | . . . . Allies Corrupted . | . . . . Allies Melted . | . . . . Intel | -11 -10 -10 -10 ------- Run | Yrd Mat Min Sub Robot Analysis Total 1 | . . 1 . Derelict Logs Recovered 1 | . . 1 . Drone Launches . | . . . . Drone Recoveries . | . . . . Exploration | -11 -10 -10 -10 ------------- Run | Yrd Mat Min Sub Turns Passed 13312 | 2 2597 2737 7976 Spaces Moved 5500 | 2 1046 773 3679 Core . | . . . . Treads 5487 | . 1035 773 3679 Legs 13 | 2 11 . . Wheels . | . . . . Hover . | . . . . Flight . | . . . . Fastest Speed 120 | 120 120 240 160 Average Speed 196 | 120 226 240 179 Slowest Speed 250 | 120 240 240 250 Overloaded Moves . | . . . . Propulsion Burnouts . | . . . . Robots Hopped . | . . . . Cave-ins Triggered . | . . . . Exploration Rate (%) 65 | 1 99 102 60 Regions Visited 3 Branch Regions 2 Pre-discovered Areas 2 | . 1 1 . Known Exits Taken . | . . . . Unknown Exits Taken 3 | 1 1 1 . Scrap Searched 3 | . . 1 2 Spaces Dug . | . . . . Terrain Destroyed . | . . . . Melee . | . . . . Projectile . | . . . . AOE . | . . . . Terrain Rammed . | . . . . Walls Destroyed . | . . . . Machines Disabled . | . . . . Actions | -11 -10 -10 -10 --------- Run | Yrd Mat Min Sub Total 7721 | 1 1184 1646 4890 Wait 1948 | . 27 865 1056 Move 5497 | 1 1045 772 3679 Hop . | . . . . Pick Up 41 | . 30 . 11 Fast Attach 17 | . 4 1 12 Attach 12 | . 5 1 6 Detach 3 | . 1 . 2 Swap 11 | . 2 1 8 Drop 42 | . 20 2 20 Fire 141 | . 50 4 87 Melee 5 | . . . 5 Ram . | . . . . Kick . | . . . . Crush . | . . . . Escape Stasis . | . . . . Rewire . | . . . . Trap 2 | . . . 2 Miscellaneous 2 | . . . 2 Route ------- -11/Scrapyard -10/Materials (discovered 5 exits: [*Mat x3] / *Min / *Sub) -10/Mines (discovered 3 exits: [*Mat x2] / *Sub) -10/Subcaves (discovered 1 exit: [*Mat]) History --------- Turn | Location | Event 1 | -11/Scrapyard | Discovered new exit (range 1) 3 | -11/Scrapyard | Entered Materials 224 | -10/Materials | Discovered new exit (range 5) 303 | -10/Materials | Build established: Mutant 542 | -10/Materials | Discovered new exit (range 16) 1003 | -10/Materials | Derelicts attacked the area 1127 | -10/Materials | Discovered new exit (range 15) 1949 | -10/Materials | Discovered new exit (range 5) 2348 | -10/Materials | Discovered new exit (range 15) 2600 | -10/Materials | Entered Mines 2615 | -10/Mines | Met a Derelict bent on vengeance 2636 | -10/Mines | Discovered new exit (range 14) 3431 | -10/Mines | Learned location of Mines (-9) 4786 | -10/Mines | Discovered new exit (range 13) 5327 | -10/Mines | Discovered new exit (range 4) 5337 | -10/Mines | Entered Subcaves 5610 | -10/Subcaves | Shifting Twisted Machinery released Piercing Trap 5684 | -10/Subcaves | Shifting Twisted Machinery released Sub. Monowheel 6937 | -10/Subcaves | Discovered new exit (range 8) 7344 | -10/Subcaves | Visited 4L-MR0's lab 7358 | -10/Subcaves | Found Power Bank 7940 | -10/Subcaves | A swath of the cavern ceiling suddenly collapsed 8113 | -10/Subcaves | Visited Clippyterm 8118 | -10/Subcaves | Learned 40 Factory zone layouts 10183 | -10/Subcaves | Core integrity fell below 50% 10883 | -10/Subcaves | Shifting Twisted Machinery released Sub. Machine Gun 10886 | -10/Subcaves | Shifting Twisted Machinery released Sub. Monowheel 10926 | -10/Subcaves | Core integrity fell below 20% 11876 | -10/Subcaves | Found SUBCON Basin 13313 | -10/Subcaves | Destroyed by TP-ZCV(R) with Subdweller Beam Cannon Last Messages --------------- Collection purity confirmed 100%... Ejecting SUBCON Basin... Delivery behind schedule, handle with care! 11142_ 4R-362(u) tweaks Twisted Machinery. 11154_ Sub. Power Source shoots sparks and powers down. 11154_ Dropped Hvy. Assault Rifle. 11168_ Acquired Barrage Gun. 11379_ Dropped Shield Generator. 11379_ Acquired Hcp. Storage Unit. 11727_ 4R-362(u) tweaks Twisted Machinery. 11876_ Acquired SUBCON Basin. 12377_ Dropped Lgt. Armor Plating. 12378_ Dropped Wheel. 12381_ Acquired Plasma Cutter. 12387_ Extracted 142 matter. 12740_ Dropped Hvy. Assault Rifle. 12740_ Acquired EM Pulse Gun. 12756_ Subatomizers dissect the Hvy. Assault Rifle. 13019_ Installed Shrapnel Trap. 13120_ 4R-362(u) tweaks Twisted Machinery. Map ----- +----------------------------------------------------+ | ?????????????????????????????## ##?????????????? | | ????????????????????????????## #??????????????? | | ??????????????????????????### #??????????????? | | ??????????????????????????# " #??????????????? | | ????????????????????????###"" ##?????????????? | | ????????????????????????# " "#?????????????? | | ????????????????????????## "[ ##?????????????? | | ?????????????????????"???#"" "#??????????????? | | ????????????????????"" ??##= "##?????????????? | | ????????????????????" #??# # """#?????????????? | | ??????????????????#?""""### # ""#?????????????? | | ?????????????????## """""" #######?????????????? | | ?????????????????" """""" ###?????????????????? | | ????????????????"" """""" ##????????????????? | | ?????????????? "" """"""" ##???????????????? | | ??????????????"" """ ##??????????????? | | ????????????????## " #??????????????? | | ?????????????????## ## #??????????????? | | ??????????????#####??# #??????????????? | | ?????????????## ???## #??????????????? | | ????????????## ##### ## ##??????????????? | | ????????????# ## ##?##???????????????? | | ????????????# #???????????????????? | | ?????????????### ## #???????????????????? | | ??????????#######?# #???????????????????? | | ?????????## ### @ ## #??????????????? | | ????????## R #??????????????? | | ###?????# & ### ##??????????????? | | # ##????# =! ! ## ##?# ##??????????????? | | ###### ## ## ##?## #??????????????? | | # # ## #??# #??????????????? | | "" #?# ##?????????????? | | " [ ## #?????????????? | | # # # # % #?????????????? | | ""##""##" ###########| ## ##?????????????? | | #""#""##?????????## #?????????????????? | | # " "#?????????### ##????????????????? | | " " "#???????### ##???????????????? | | " """####???????# ##??????????????? | | #??????????# #??????????????? | | ### ??????????# #??????????????? | | ???# ???????????## #??????????????? | | ????#?????????????## ##?????????????? | | ???????????????????# #?????????????? | | ???????????????????## #?????????????? | | ????????????????????### ##?????????????? | | ??????????????????????# ### #??????????????? | | ??????????????????????# ##### #??????????????? | | ??????????????????????# # #??????????????? | | ??????????????????????# ##??????????????? | +----------------------------------------------------+ Best States ------------- Heat Dissipation 25 Energy Generation 15 Energy Capacity 250 Matter Stores 300 Matter Capacity 300 Sight Range 16 Terrain Scan Density 10 Armor Coverage 800 Evasion (%) 55 Recoil Reduction 2 Item Schematics ----------------- None Robot Schematics ------------------ None Fabricated ------------ Nothing Alien Tech Used ----------------- None Achievements -------------- None Challenges ------------ None Game ------ Seed GlidesysNuclearProjector Manual? 0 Play Time 00:32:50 Cumulative 155.2 hours Start 2024.12.08 @ 23:10:55 End 2024.12.11 @ 17:41:06 Sessions 5 Manual Loads 0 Difficulty Rogue Special Mode None Game No. 292 Rogue 292 Adventurer 0 Explorer 0 Win Type - Total 0 Types 0/0/0/0/0/0/0/0/0 Lore% 46 Gallery% 42 Achievement% 36 Wizard Run 0 Options --------- Layout 0 ASCII 0 Keyboard 0 Movement Mouse Keybinds 0 Fullscreen 1 Font 24/Smallcaps Map View 183x50 Zoom Use 93% Tactical HUD 1 Map Filters NONE Filters NONE Steam 1 RUN: 13ce3b3e-f521-40b5-85ee-05081a3a6222